[Event "ETCC Open 2023"]
[Site "Budva"]
[Date "2023.11.12"]
[Round "2.52"]
[White "Kucuksari, Kaan"]
[Black "Wartiovaara, Oliver"]
[Result "0-1"]
[ECO "D71"]
[WhiteElo "2474"]
[BlackElo "2270"]
[Annotator "ChessBase"]
[PlyCount "76"]
[EventDate "2023.11.10"]
[EventType "team-tourn"]
[EventCountry "MNE"]
[SourceTitle "playchess.com"]
[Source "ChessBase"]
[SourceQuality "1"]
[WhiteTeam "Sweden"]
[BlackTeam "Finland"]
[WhiteTeamCountry "SWE"]
[BlackTeamCountry "FIN"]
[TimeControl "40/5400+30:1800+30"]

1. d4 {[%emt 0:00:01]} Nf6 {[%emt 0:00:14]} 2. c4 {[%emt 0:00:06]} g6 {[%emt 0:00:08]} 3. g3 {[%emt 0:00:04]} c6 {[%emt 0:00:05]} 4. Bg2 {[%emt 0:00:24]} d5 {[%emt 0:00:12]} 5. Qa4 {[%emt 0:00:05]} Bg7 {[%emt 0:00:09]} 6. cxd5 {[%emt 0:00:06]} O-O {[%emt 0:00:04]} 7. e4 {[%emt 0:00:17]} cxd5 {[%emt 0:00:05]} 8. e5 {[%emt 0:00:04]} Ne4 {[%emt 0:00:04]} 9. f3 {[%emt 0:08:21]} Bd7 {[%emt 0:00:10]} 10. Qa3 {[%emt 0:01:41]} Nd6 {[%emt 0:00:08]} 11. exd6 {[%emt 0:00:20]} exd6 {[%emt 0:00:04]} 12. Ne2 {[%emt 0:01:37]} Re8 {[%emt 0:00:06]} 13. Kd1 {[%emt 0:15:54]} Rxe2 {[%emt 0:00:50]} 14. Kxe2 {[%emt 0:00:07]} Nc6 {[%emt 0:00:04]} 15. Be3 {[%emt 0:11:13]} Nxd4+ {[%emt 0:02:03]} 16. Kd1 {[%emt 0:07:52]} Rc8 {[%emt 0:29:51]} 17. Nc3 {[%emt 0:02:46]} Qf6 {[%emt 0:03:30]} 18. Kd2 {[%emt 0:32:51]} Nxf3+ {[%emt 0:05:53]} 19. Bxf3 {[%emt 0:00:14]} d4 {[%emt 0:01:25]} 20. Rhf1 {[%emt 0:04:06]} dxc3+ {[%emt 0:09:04]} 21. bxc3 {[%emt 0:00:07]} Rxc3 {[%emt 0:00:21]} 22. Qb4 {[%emt 0:01:14]} a5 {[%emt 0:18:10]} 23. Qb6 {[%emt 0:10:24]} Rxe3 {[%emt 0:03:34]} 24. Qxe3 {[%emt 0:02:00]} Qb2+ {[%emt 0:00:11]} 25. Ke1 {[%emt 0:00:22]} Bc3+ {[%emt 0:01:33]} 26. Qxc3 {[%emt 0:00:06]} Qxc3+ {[%emt 0:00:05]} 27. Kf2 {[%emt 0:00:05]} Bc6 {[%emt 0:00:42]} 28. Bxc6 {[%emt 0:00:15]} bxc6 {[%emt 0:00:09]} 29. a4 {[%emt 0:00:38]} d5 {[%emt 0:00:25]} 30. Ra2 {[%emt 0:00:31]} d4 {[%emt 0:00:44]} 31. Kg2 {[%emt 0:00:10]} Qc4 {[%emt 0:01:32]} 32. Raf2 {[%emt 0:00:05]} Qd5+ {[%emt 0:00:09]} 33. Kg1 {[%emt 0:00:03]} c5 {[%emt 0:00:05]} 34. Rb1 {[%emt 0:00:06]} d3 {[%emt 0:00:20]} 35. Rbb2 {[%emt 0:01:37]} c4 {[%emt 0:00:10]} 36. Rb5 {[%emt 0:00:04]} Qd4 {[%emt 0:02:09]} 37. Rb8+ {[%emt 0:00:05]} Kg7 {[%emt 0:00:07]} 38. Rb7 {[%emt 0:00:02]} d2 {[%emt 0:00:19]} 0-1

[Event "ETCC Open 2023"]
[Site "Budva"]
[Date "2023.11.12"]
[Round "2.53"]
[White "Paichadze, Luka"]
[Black "Nikolovski, Nikola"]
[Result "1-0"]
[ECO "C02"]
[WhiteElo "2501"]
[BlackElo "2405"]
[Annotator "ChessBase"]
[PlyCount "57"]
[EventDate "2023.11.10"]
[EventType "team-tourn"]
[EventCountry "MNE"]
[SourceTitle "playchess.com"]
[Source "ChessBase"]
[SourceQuality "1"]
[WhiteTeam "Georgia"]
[BlackTeam "Macedonia"]
[WhiteTeamCountry "GEO"]
[BlackTeamCountry "MKD"]
[TimeControl "40/5400+30:1800+30"]

1. e4 {[%emt 0:00:10]} e6 {[%emt 0:00:36]} 2. d4 {[%emt 0:00:29]} d5 {[%emt 0:00:43]} 3. e5 {[%emt 0:00:07]} c5 {[%emt 0:00:39]} 4. c3 {[%emt 0:00:06]} Nc6 {[%emt 0:00:07]} 5. Nf3 {[%emt 0:00:04]} Bd7 {[%emt 0:00:32]} 6. Be2 {[%emt 0:00:19]} f6 {[%emt 0:04:41]} 7. O-O {[%emt 0:05:02]} Qc7 {[%emt 0:03:14]} 8. Bf4 {[%emt 0:07:21]} O-O-O {[%emt 0:00:54]} 9. Na3 {[%emt 0:05:31]} c4 {[%emt 0:16:01]} 10. Nb5 {[%emt 0:09:38]} Qb6 {[%emt 0:04:15]} 11. a4 {[%emt 0:03:34]} g5 {[%emt 0:08:57]} 12. Bg3 {[%emt 0:02:23]} g4 {[%emt 0:01:20]} 13. Nd2 {[%emt 0:01:33]} fxe5 {[%emt 0:04:07]} 14. b3 {[%emt 0:10:03]} exd4 {[%emt 0:21:28]} 15. bxc4 {[%emt 0:03:53]} Nf6 {[%emt 0:13:56]} 16. cxd5 {[%emt 0:06:50]} exd5 {[%emt 0:03:48]} 17. a5 {[%emt 0:05:42]} Qc5 {[%emt 0:00:44]} 18. cxd4 {[%emt 0:07:34]} Nxd4 {[%emt 0:05:45]} 19. Nxd4 {[%emt 0:04:28]} Qxd4 {[%emt 0:00:30]} 20. Qc2+ {[%emt 0:00:06]} Bc6 {[%emt 0:01:47]} 21. a6 {[%emt 0:01:06]} Bb4 {[%emt 0:04:15]} 22. Rfc1 {[%emt 0:04:42]} Qb6 {[%emt 0:01:57]} 23. axb7+ {[%emt 0:03:55]} Kxb7 {[%emt 0:00:43]} 24. Ba6+ {[%emt 0:00:39]} Ka8 {[%emt 0:00:09]} 25. Qxc6+ {[%emt 0:00:09]} Qxc6 {[%emt 0:00:05]} 26. Rxc6 {[%emt 0:00:04]} Nd7 {[%emt 0:01:15]} 27. Rb1 {[%emt 0:01:33]} Nb8 {[%emt 0:00:21]} 28. Rxb4 {[%emt 0:00:13]} Nxc6 {[%emt 0:00:05]} 29. Bb7# {[%emt 0:00:03]} 1-0

[Event "ETCC Open 2023"]
[Site "Budva"]
[Date "2023.11.12"]
[Round "2.54"]
[White "Risteski, Emil"]
[Black "Jobava, Baadur"]
[Result "0-1"]
[ECO "C41"]
[WhiteElo "2379"]
[BlackElo "2568"]
[Annotator "RC"]
[PlyCount "82"]
[EventDate "2023.11.10"]
[EventType "team-tourn"]
[EventCountry "MNE"]
[SourceTitle "playchess.com"]
[Source "ChessBase"]
[SourceQuality "1"]
[WhiteTeam "Macedonia"]
[BlackTeam "Georgia"]
[WhiteTeamCountry "MKD"]
[BlackTeamCountry "GEO"]
[TimeControl "40/5400+30:1800+30"]

1. e4 {[%emt 0:00:27]} e5 {[%emt 0:01:00]} 2. Nf3 {[%emt 0:00:07]} Nf6 {[%emt 0:00:07]} 3. Nc3 {[%emt 0:00:50]} d6 {[%emt 0:00:58]} 4. d4 {[%emt 0:00:20]} Nbd7 {[%emt 0:00:05]} 5. h3 {[%emt 0:00:30]} exd4 {[%emt 0:24:09]} 6. Qxd4 {[%emt 0:06:13]} c6 {[%emt 0:11:02]} 7. Be3 {[%emt 0:04:42]} Be7 {[%emt 0:05:43]} 8. O-O-O {[%emt 0:02:41]} O-O {[%emt 0:01:15]} 9. g4 {[%emt 0:11:19]} Nb6 {[%emt 0:12:56]} 10. g5 {[%emt 0:22:24]} Ne8 {[%emt 0:00:27]} 11. Rg1 {[%emt 0:03:26]} Nc7 {[%emt 0:06:19]} 12. Nh4 {[%emt 0:03:25]} g6 {[%emt 0:05:00]} 13. f4 {[%emt 0:05:06]} d5 {[%emt 0:00:32]} 14. Qd3 {[%emt 0:00:39]} Re8 {[%emt 0:11:36]} 15. f5 {[%emt 0:11:32]} Na6 {[%emt 0:08:56]} 16. a3 {[%emt 0:12:15]} Nc4 {[%emt 0:02:29]} 17. Qxc4 {[%emt 0:05:47]} dxc4 {[%emt 0:00:06]} 18. Rxd8 {[%emt 0:00:02]} Bxd8 {[%emt 0:00:06]} 19. Bxc4 {[%emt 0:00:04]} b5 {[%emt 0:02:32]} 20. Ba2 {[%emt 0:00:39]} b4 {[%emt 0:00:30]} 21. axb4 {[%emt 0:01:30]} Nxb4 {[%emt 0:00:05]} 22. Bb3 {[%emt 0:00:03]} Bb6 {[%emt 0:00:21]} 23. Bxb6 {[%emt 0:00:11]} axb6 {[%emt 0:00:05]} 24. Kd2 {[%emt 0:01:27]} Kg7 {[%emt 0:01:47]} 25. Rf1 {[%emt 0:00:53]} Ra7 {[%emt 0:00:06]} 26. Ke3 {[%emt 0:03:07]} Na6 {[%emt 0:00:51]} 27. Kf4 {[%emt 0:01:32]} Nc5 {[%emt 0:00:21]} 28. Nf3 {[%emt 0:00:46]} b5 {[%emt 0:02:48]} 29. Ne5 {[%emt 0:01:15]} b4 {[%emt 0:00:05]} 30. Ne2 {[%emt 0:00:49]} Ba6 {[%emt 0:01:06]} 31. Rf2 {[%emt 0:00:39]} gxf5 {[%emt 0:01:53]} 32. exf5 {[%emt 0:01:00]} f6 {[%emt 0:00:21]} 33. gxf6+ {[%emt 0:00:24]} Kxf6 {[%emt 0:00:04]} 34. Ng3 {[%emt 0:00:24]} Bb5 {[%emt 0:01:06]} 35. Nh5+ {[%emt 0:00:31]} Ke7 {[%emt 0:00:02]} 36. Rg2 {[%emt 0:00:56]} Ra1 {[%emt 0:00:47]} 37. f6+ {[%emt 0:00:15]} Kd6 {[%emt 0:00:12]} 38. f7 {[%emt 0:00:48]} Rf1+ {[%emt 0:00:05]} 39. Nf3 {[%emt 0:00:01]} Rf8 {[%emt 0:00:28]} 40. Rg7 {[%emt 0:01:00]} Nxb3 {[%emt 0:00:34]} 41. cxb3 {[%emt 0:30:29]} Be2 {[%emt 0:30:25]} 0-1

[Event "ETCC Open 2023"]
[Site "Budva"]
[Date "2023.11.12"]
[Round "2.55"]
[White "Kacharava, Nikolozi"]
[Black "Pancevski, Filip"]
[Result "1-0"]
[ECO "C95"]
[WhiteElo "2519"]
[BlackElo "2441"]
[Annotator "ChessBase"]
[PlyCount "65"]
[EventDate "2023.11.10"]
[EventType "team-tourn"]
[EventCountry "MNE"]
[SourceTitle "playchess.com"]
[Source "ChessBase"]
[SourceQuality "1"]
[WhiteTeam "Georgia"]
[BlackTeam "Macedonia"]
[WhiteTeamCountry "GEO"]
[BlackTeamCountry "MKD"]
[TimeControl "40/5400+30:1800+30"]

1. e4 {[%emt 0:00:16]} e5 {[%emt 0:00:07]} 2. Nf3 {[%emt 0:00:30]} Nc6 {[%emt 0:00:02]} 3. Bb5 {[%emt 0:00:56]} a6 {[%emt 0:00:06]} 4. Ba4 {[%emt 0:00:25]} Nf6 {[%emt 0:00:02]} 5. O-O {[%emt 0:00:44]} Be7 {[%emt 0:00:06]} 6. Re1 {[%emt 0:01:09]} b5 {[%emt 0:00:06]} 7. Bb3 {[%emt 0:00:06]} d6 {[%emt 0:00:02]} 8. c3 {[%emt 0:00:54]} O-O {[%emt 0:00:07]} 9. h3 {[%emt 0:00:42]} Nb8 {[%emt 0:00:07]} 10. d4 {[%emt 0:01:05]} Nbd7 {[%emt 0:00:07]} 11. Nbd2 {[%emt 0:00:47]} Bb7 {[%emt 0:00:02]} 12. Bc2 {[%emt 0:00:54]} Re8 {[%emt 0:00:06]} 13. Nf1 {[%emt 0:00:51]} Bf8 {[%emt 0:00:02]} 14. Ng3 {[%emt 0:00:26]} g6 {[%emt 0:00:01]} 15. Bd2 {[%emt 0:00:59]} Bg7 {[%emt 0:00:20]} 16. Qc1 {[%emt 0:00:47]} d5 {[%emt 0:00:20]} 17. Bg5 {[%emt 1:27:29]} Qb8 {[%emt 0:00:19]} 18. dxe5 {[%emt 0:00:00]} Nxe5 {[%emt 0:00:13]} 19. Nxe5 {[%emt 0:00:00]} Rxe5 {[%emt 1:37:45]} 20. f4 {[%emt 0:00:00]} Re8 {[%emt 0:00:00]} 21. e5 {[%emt 0:00:00]} Nd7 {[%emt 0:00:00]} 22. Qd1 {[%emt 0:00:00]} Qa7+ {[%emt 0:00:00]} 23. Kh2 {[%emt 0:00:00]} Qb6 {[%emt 0:00:00]} 24. Qg4 {[%emt 0:00:00]} Nc5 {[%emt 0:00:00]} 25. Re2 {[%emt 0:00:00]} Re6 {[%emt 0:00:00]} 26. Qh4 {[%emt 0:00:00]} a5 {[%emt 0:00:00]} 27. Bh6 {[%emt 0:00:00]} Bh8 {[%emt 0:00:00]} 28. Rae1 {[%emt 0:00:00]} Nd7 {[%emt 0:00:00]} 29. Qg4 {[%emt 0:00:00]} Rae8 {[%emt 0:00:13]} 30. Bf5 {[%emt 0:00:00]} Nxe5 {[%emt 0:00:27]} 31. fxe5 {[%emt 0:00:00]} Rxe5 {[%emt 0:00:06]} 32. Bd7 {[%emt 0:00:00]} R8e7 {[%emt 0:00:32]} 33. Nf5 {[%emt 0:00:00]} 1-0

[Event "ETCC Open 2023"]
[Site "Budva"]
[Date "2023.11.12"]
[Round "2.56"]
[White "Lazov, Toni"]
[Black "Quparadze, Giga"]
[Result "1-0"]
[ECO "B07"]
[WhiteElo "2377"]
[BlackElo "2490"]
[Annotator "ChessBase"]
[PlyCount "93"]
[EventDate "2023.11.10"]
[EventType "team-tourn"]
[EventCountry "MNE"]
[SourceTitle "playchess.com"]
[Source "ChessBase"]
[SourceQuality "1"]
[WhiteTeam "Macedonia"]
[BlackTeam "Georgia"]
[WhiteTeamCountry "MKD"]
[BlackTeamCountry "GEO"]
[TimeControl "40/5400+30:1800+30"]

1. e4 {[%emt 0:00:03]} c5 {[%emt 0:00:05]} 2. Be2 {[%emt 0:00:06]} Nc6 {[%emt 0:00:08]} 3. f4 {[%emt 0:00:07]} g6 {[%emt 0:00:06]} 4. Nf3 {[%emt 0:00:02]} Bg7 {[%emt 0:00:06]} 5. O-O {[%emt 0:00:31]} d6 {[%emt 0:00:16]} 6. a4 {[%emt 0:06:47]} Nf6 {[%emt 0:00:28]} 7. d3 {[%emt 0:00:32]} O-O {[%emt 0:00:07]} 8. Qe1 {[%emt 0:00:10]} Nd4 {[%emt 0:06:37]} 9. Bd1 {[%emt 0:01:18]} Nxf3+ {[%emt 0:03:32]} 10. Bxf3 {[%emt 0:01:36]} Ne8 {[%emt 0:00:06]} 11. Nd2 {[%emt 0:11:10]} e6 {[%emt 0:01:31]} 12. a5 {[%emt 0:07:12]} Bd7 {[%emt 0:01:23]} 13. e5 {[%emt 0:15:03]} d5 {[%emt 0:00:57]} 14. b4 {[%emt 0:06:11]} cxb4 {[%emt 0:01:16]} 15. Nb3 {[%emt 0:02:34]} f6 {[%emt 0:00:05]} 16. d4 {[%emt 0:04:34]} Rc8 {[%emt 0:00:22]} 17. Ra2 {[%emt 0:09:55]} Nc7 {[%emt 0:00:47]} 18. Qxb4 {[%emt 0:05:06]} Bb5 {[%emt 0:00:37]} 19. Rf2 {[%emt 0:01:03]} Bc4 {[%emt 0:00:15]} 20. Rb2 {[%emt 0:05:39]} Na6 {[%emt 0:02:51]} 21. Qe1 {[%emt 0:00:05]} fxe5 {[%emt 0:00:16]} 22. fxe5 {[%emt 0:01:22]} Qd7 {[%emt 0:05:53]} 23. Bg5 {[%emt 0:02:46]} Rf5 {[%emt 0:00:24]} 24. Be3 {[%emt 0:00:53]} Rcf8 {[%emt 0:00:13]} 25. Nd2 {[%emt 0:00:53]} Bb5 {[%emt 0:00:07]} 26. Qb1 {[%emt 0:04:05]} Bc6 {[%emt 0:00:13]} 27. Nf1 {[%emt 0:01:23]} Qe7 {[%emt 0:00:31]} 28. Ng3 {[%emt 0:02:21]} R5f7 {[%emt 0:00:05]} 29. Rb3 {[%emt 0:03:17]} Ba4 {[%emt 0:01:26]} 30. Rb2 {[%emt 0:01:34]} Qa3 {[%emt 0:00:41]} 31. Bd2 {[%emt 0:00:29]} Bc6 {[%emt 0:00:50]} 32. Rb3 {[%emt 0:02:28]} Qe7 {[%emt 0:00:08]} 33. Qc1 {[%emt 0:00:17]} Qh4 {[%emt 0:00:53]} 34. Ne2 {[%emt 0:00:19]} Qe7 {[%emt 0:02:53]} 35. Bg5 {[%emt 0:01:00]} Qc7 {[%emt 0:00:33]} 36. Nf4 {[%emt 0:00:56]} Bd7 {[%emt 0:02:52]} 37. Nxd5 {[%emt 0:00:15]} exd5 {[%emt 0:01:50]} 38. Bxd5 {[%emt 0:00:02]} Bf5 {[%emt 0:00:10]} 39. e6 {[%emt 0:02:07]} Re7 {[%emt 0:01:14]} 40. Bxe7 {[%emt 0:00:49]} Qxe7 {[%emt 0:00:37]} 41. Rxb7 {[%emt 0:31:56]} Qd6 {[%emt 0:36:23]} 42. Rd7 {[%emt 0:00:00]} Qb8 {[%emt 0:00:00]} 43. e7+ {[%emt 0:00:00]} Kh8 {[%emt 0:00:00]} 44. exf8=Q+ {[%emt 0:00:00]} Qxf8 {[%emt 0:00:00]} 45. Be6 {[%emt 0:00:00]} Nb8 {[%emt 0:00:00]} 46. Rc7 {[%emt 0:00:00]} Bh6 {[%emt 0:00:00]} 47. Qb2 {[%emt 0:00:00]} 1-0

[Event "ETCC Open 2023"]
[Site "Budva"]
[Date "2023.11.12"]
[Round "2.57"]
[White "Laurusas, Tomas"]
[Black "Tomic, Aleksandar"]
[Result "1-0"]
[ECO "E11"]
[WhiteElo "2566"]
[BlackElo "2411"]
[Annotator "RC"]
[PlyCount "102"]
[EventDate "2023.11.10"]
[EventType "team-tourn"]
[EventCountry "MNE"]
[SourceTitle "playchess.com"]
[Source "ChessBase"]
[SourceQuality "1"]
[WhiteTeam "Lithuania"]
[BlackTeam "Montenegro"]
[WhiteTeamCountry "LTU"]
[BlackTeamCountry "MNE"]
[TimeControl "40/5400+30:1800+30"]

1. d4 {[%emt 0:00:03]} Nf6 {[%emt 0:01:46]} 2. c4 {[%emt 0:01:06]} e6 {[%emt 0:00:24]} 3. Nf3 {[%emt 0:00:07]} Bb4+ {[%emt 0:01:08]} 4. Nbd2 {[%emt 0:00:11]} a5 {[%emt 0:06:28]} 5. g3 {[%emt 0:08:38]} b6 {[%emt 0:05:31]} 6. Bg2 {[%emt 0:01:11]} Bb7 {[%emt 0:00:58]} 7. O-O {[%emt 0:00:18]} Bxd2 {[%emt 0:05:25]} 8. Bxd2 {[%emt 0:02:05]} d6 {[%emt 0:02:07]} 9. Bg5 {[%emt 0:13:48]} Nbd7 {[%emt 0:10:13]} 10. d5 {[%emt 0:10:56]} exd5 {[%emt 0:12:48]} 11. Nd4 {[%emt 0:06:53]} h6 {[%emt 0:08:43]} 12. Bxf6 {[%emt 0:03:29]} Qxf6 {[%emt 0:03:36]} 13. cxd5 {[%emt 0:00:05]} O-O {[%emt 0:07:10]} 14. b3 {[%emt 0:04:28]} Nc5 {[%emt 0:06:00]} 15. Re1 {[%emt 0:00:53]} Ba6 {[%emt 0:04:34]} 16. Rc1 {[%emt 0:01:48]} Rfe8 {[%emt 0:05:11]} 17. Rc3 {[%emt 0:00:44]} b5 {[%emt 0:10:32]} 18. Rf3 {[%emt 0:01:12]} Qg6 {[%emt 0:00:19]} 19. a3 {[%emt 0:01:16]} b4 {[%emt 0:01:06]} 20. axb4 {[%emt 0:02:43]} axb4 {[%emt 0:00:08]} 21. Rf4 {[%emt 0:14:24]} Ne4 {[%emt 0:02:54]} 22. Bxe4 {[%emt 0:03:15]} Rxe4 {[%emt 0:00:03]} 23. Qc2 {[%emt 0:00:07]} Rae8 {[%emt 0:01:54]} 24. e3 {[%emt 0:11:17]} Bb7 {[%emt 0:00:34]} 25. Rxe4 {[%emt 0:01:45]} Qxe4 {[%emt 0:00:16]} 26. Qxe4 {[%emt 0:00:10]} Rxe4 {[%emt 0:00:05]} 27. Rc1 {[%emt 0:00:05]} Re7 {[%emt 0:03:18]} 28. Nf5 {[%emt 0:00:08]} Re5 {[%emt 0:00:27]} 29. Rxc7 {[%emt 0:00:40]} Bxd5 {[%emt 0:00:46]} 30. Ne7+ {[%emt 0:01:02]} Kf8 {[%emt 0:00:02]} 31. Nxd5 {[%emt 0:00:07]} Rxd5 {[%emt 0:00:01]} 32. Rb7 {[%emt 0:00:08]} Rd2 {[%emt 0:00:43]} 33. Rxb4 {[%emt 0:00:52]} Ke7 {[%emt 0:00:08]} 34. g4 {[%emt 0:01:59]} Rb2 {[%emt 0:00:36]} 35. h4 {[%emt 0:00:14]} Ke6 {[%emt 0:00:59]} 36. Rb5 {[%emt 0:00:13]} Kf6 {[%emt 0:00:57]} 37. Kg2 {[%emt 0:00:04]} Ke6 {[%emt 0:00:20]} 38. Kg3 {[%emt 0:00:11]} Rd2 {[%emt 0:00:40]} 39. h5 {[%emt 0:00:19]} Rd3 {[%emt 0:00:34]} 40. Rb8 {[%emt 0:02:40]} Kf6 {[%emt 0:00:26]} 41. b4 {[%emt 0:34:54]} Rb3 {[%emt 0:17:55]} 42. Kf4 {[%emt 0:00:00]} Rd3 {[%emt 0:04:51]} 43. b5 {[%emt 0:00:00]} Rd2 {[%emt 0:02:36]} 44. Kg3 {[%emt 0:00:00]} Rd3 {[%emt 0:01:28]} 45. b6 {[%emt 0:00:00]} Rb3 {[%emt 0:02:07]} 46. b7 {[%emt 0:00:00]} d5 {[%emt 0:00:45]} 47. f3 {[%emt 0:00:00]} Rb2 {[%emt 0:02:54]} 48. f4 {[%emt 0:00:00]} Rb3 {[%emt 0:00:28]} 49. Kf2 {[%emt 0:00:00]} Rb2+ {[%emt 0:00:46]} 50. Kf3 {[%emt 0:00:00]} Rb4 {[%emt 0:00:57]} 51. g5+ {[%emt 0:00:00]} Kf5 {[%emt 0:00:52]} 1-0

[Event "ETCC Open 2023"]
[Site "Budva"]
[Date "2023.11.12"]
[Round "2.58"]
[White "Sukovic, Andrej"]
[Black "Kazakouski, Valery"]
[Result "0-1"]
[ECO "C78"]
[WhiteElo "2382"]
[BlackElo "2577"]
[Annotator "TA"]
[PlyCount "78"]
[EventDate "2023.11.10"]
[EventType "team-tourn"]
[EventCountry "MNE"]
[SourceTitle "playchess.com"]
[Source "ChessBase"]
[SourceQuality "1"]
[WhiteTeam "Montenegro"]
[BlackTeam "Lithuania"]
[WhiteTeamCountry "MNE"]
[BlackTeamCountry "LTU"]
[TimeControl "40/5400+30:1800+30"]

{[%evp 17,78,36,43,19,23,21,25,18,28,21,21,21,21,14,24,18,18,18,25,22,21,-193,-199,-354,-232,-201,-181,-220,-215,-189,-218,-231,-201,-192,-39,-204,-195,-199,-189,-166,-107,-140,-140,-272,-185,-337,-337,-293,-315,-376,-380,-704,-691,-580,-496,-688,-655,-702,-698,-29980,-29981,-29981,-29982]} 1. e4 {[%emt 0:02:01]} e5 {[%emt 0:00:11]} 2. Nf3 {[%emt 0:00:04]} Nc6 {[%emt 0:00:08]} 3. Bb5 {[%emt 0:00:07]} a6 {[%emt 0:00:06]} 4. Ba4 {[%emt 0:00:03]} Nf6 {[%emt 0:00:08]} 5. O-O {[%emt 0:00:06]} b5 {[%emt 0:00:06]} 6. Bb3 {[%emt 0:00:03]} Bc5 {[%emt 0:00:06]} 7. c3 {[%emt 0:05:31]} d6 {[%emt 0:00:46]} 8. a4 {[%emt 0:00:20]} Rb8 {[%emt 0:00:16]} 9. d4 {[%emt 0:00:18][%cal Bd2d4,Bd4d5,Bd5c6][%mdl 32]} Bb6 {[%emt 0:00:10][%cal Bc5b6,Bb6a7,Ba7e3][%mdl 32]} 10. a5 {[%emt 0:00:11] C78: Ruy Lopez: Archangelsk and Möller Defences.} Ba7 {[%emt 0:00:12]} (10... Bxa5 $2 11. dxe5 (11. d5 Ne7 $18) 11... dxe5 12. Qxd8+ Kxd8 13. Bd5 (13. Bxf7 Bb6 $16) 13... Nxd5 14. exd5 $18) 11. h3 {[%emt 0:01:25]} Bb7 {[%emt 0:00:59]} 12. Be3 {[%emt 0:01:42] White has an edge.} Nxe4 {[%emt 0:01:54]} 13. d5 {[%emt 0:00:26]} (13. Re1 {simplifies} exd4 14. cxd4 d5 15. Nc3) 13... Bxe3 {[%emt 0:00:24]} 14. dxc6 {[%emt 0:00:09]} Nxf2 {[%emt 0:00:15]} 15. Qe2 {[%emt 0:22:08]} Nxh3+ {[%emt 0:01:09]} 16. Kh1 {[%emt 0:02:04]} Nf2+ {[%emt 0:01:55]} 17. Rxf2 {[%emt 0:00:16]} Bxf2 {[%emt 0:00:14]} 18. Qxf2 {[%emt 0:08:02] Nbd2 is the strong threat.} Bxc6 {[%emt 0:07:49] [#]} 19. Bxf7+ $1 {[%emt 0:17:16] [#]} Kd7 $146 {[%emt 0:18:24] White must now prevent ...Qf6.} ({Predecessor:} 19... Ke7 20. Nbd2 Qf8 21. Bb3 Qf6 22. Re1 Rhe8 23. Kg1 Kd7 24. Ne4 Qf8 25. c4 Qf5 {½-½ Wongso,S (2069)-Tang,D (2129) Las Vegas 1000 GM op 2023 (5)}) 20. Nd4 $2 {[%emt 0:16:04]} (20. Nbd2 Qf6 21. Re1) 20... Bxg2+ {[%emt 0:08:30][%mdl 64] Deflection} 21. Qxg2 {[%emt 0:06:54] White threatens Qg4+ and mate.} Qh4+ {[%emt 0:00:38]} (21... exd4 22. Qg4+ (22. Qxg7 $2 Qh4+ 23. Kg2 Qe4+ 24. Kh2 Qf4+ 25. Kh1 Rbf8 $19) 22... Kc6 23. Qxd4 $17 (23. Qxg7 $2 Qh4+ 24. Kg1 Qe1+ 25. Kh2 Rbf8 $19) (23. cxd4 Qe7 $17)) 22. Kg1 {[%emt 0:00:03]} Qe1+ {[%emt 0:02:58]} 23. Kh2 {[%emt 0:00:05]} exd4 {[%emt 0:00:46]} (23... Qh4+ $2 24. Qh3+ Qxh3+ 25. Kxh3 exd4 26. Bh5 $19) 24. Nd2 {[%emt 0:00:16]} Qh4+ {[%emt 0:05:17]} (24... Qxa1 25. Qg4+ Ke7 26. Bd5) 25. Kg1 {[%emt 0:00:01]} h5 $2 {[%emt 0:01:58]} (25... Qe7 $19 26. Bh5 (26. Qxg7 $2 {is the wrong capture.} Rhg8 $19) (26. Qg4+ $2 Kd8 $19) 26... dxc3 27. bxc3 Qe3+ 28. Kh1 Qh6 29. Qh3+ Kc6) 26. Qxg7 {[%emt 0:06:02]} (26. Bd5 $15 Qg4 27. Bc6+ Ke7 28. Qxg4 hxg4 29. Re1+ Kf7 30. cxd4) 26... Qg4+ {[%emt 0:01:58]} 27. Qxg4+ {[%emt 0:00:05]} hxg4 {[%emt 0:00:06]} 28. cxd4 {[%emt 0:00:03]} Rhf8 {[%emt 0:00:12]} ({Black should try} 28... Rbf8 $19 29. Rf1 c5 30. dxc5 dxc5) 29. Bd5 {[%emt 0:03:39]} Rbe8 {[%emt 0:07:50] Threatens to win with ...Re2.} 30. Rf1 {[%emt 0:02:37]} (30. Bb7 $17) 30... c6 {[%emt 0:02:30]} 31. Bg2 {[%emt 0:03:28]} (31. Be4 {was forced.}) 31... Rxf1+ {[%emt 0:01:31]} 32. Kxf1 {[%emt 0:00:22]} Re3 {[%emt 0:00:49] aiming for ...Rd3.} 33. Be4 {[%emt 0:00:50] Against Rd3} g3 {[%emt 0:01:07]} 34. b4 $2 {[%emt 0:03:34]} (34. d5) 34... Kc7 {[%emt 0:01:07]} 35. Bg2 {[%emt 0:01:10]} Rd3 {[%emt 0:01:07]} 36. Ne4 {[%emt 0:00:25]} Rxd4 {[%emt 0:00:14]} 37. Ke2 {[%emt 0:00:29]} Rxb4 {[%emt 0:00:08]} 38. Nf6 {[%emt 0:00:04]} Rb2+ {[%emt 0:00:07]} 39. Kf3 {[%emt 0:00:01]} Rf2+ {[%emt 0:00:07][%mdl 64] Skewer. Excellently played by Kazakouski!   Weighted Error Value: White=0.77/Black=0.23 (precise)} 0-1